Cogmind - Beta 13 X2 @@@ ROGUE MODE // 2024.01.05 @ 20:44:48 Player: Minty Result: Destroyed by W0-B22(R) with Subdweller Laser Performance ------------- Evolutions (0) 0 Regions Visited (3) 600 Robots Destroyed (11) 55 Value Destroyed (313) 313 Prototype IDs (12) 240 Alien Tech Used (0) 0 Bonus (-128) -128 TOTAL SCORE: 1080 Bonus ------- Friendly Fire -128 Cogmind --------- Core Integrity 0/250 Matter 271/300 Energy 197/200 System Corruption 1% Temperature Cool (6) Movement Core (150) Ox2 Location -10/Subcaves Parts ------- > --- POWER (1) -------- Subdweller Power Source > --- PROPULSION (2) --- (None) > --- UTILITY (2) ------ (None) > --- WEAPON (2) ------- Grenade Launcher > --- INVENTORY (5) ---- Subdweller Laser Battle Rifle Multitool Botcube Peak State ------------ > --- POWER ------------ Light Ion Engine Subdweller Power Source > --- PROPULSION ------- Wheel > --- UTILITY ---------- Subdweller Optics Targeting Computer > --- WEAPON ----------- Powered Cannon > --- INVENTORY -------- Heat Sink Grenade Launcher Botcube [Rating: 22] Favorites ----------- Power Subdweller Power Source Engine Subdweller Power Source Propulsion Aluminum Leg Leg Aluminum Leg Wheel Wheel Flight Unit Flight Unit Utility Targeting Computer Device Subdweller Optics Storage Small Storage Unit Processor Targeting Computer Weapon Powered Cannon Energy Gun Medium Laser Energy Cannon Powered Cannon Ballistic Gun Light Assault Rifle Ballistic Cannon Light Cannon Launcher Grenade Launcher Special Weapon Mining Laser Slashing Weapon Mining Claw Build | -11 -10 -10 -10 ------- Run | Yrd Mat Min Sub Slots Evolved . | . . . . Power . | . . . . Propulsion . | . . . . Utility . | . . . . Weapon . | . . . . Parts Attached 19 | . 3 3 13 Power 3 | . . . 3 Engine 3 | . . . 3 Core . | . . . . Reactor . | . . . . Propulsion 3 | . . 2 1 Treads . | . . . . Leg . | . . . . Wheel 1 | . . . 1 Hover . | . . . . Flight 2 | . . 2 . Utility 4 | . 1 . 3 Device 3 | . . . 3 Storage . | . . . . Processor 1 | . 1 . . Hackware . | . . . . Protection . | . . . . Artifact . | . . . . Weapon 9 | . 2 1 6 Energy Gun 1 | . . . 1 Energy Cannon 1 | . . . 1 Ballistic Gun . | . . . . Ballistic Cannon 1 | . . 1 . Launcher 1 | . . . 1 Special Weapon 4 | . 2 . 2 Impact Weapon . | . . . . Slashing Weapon 1 | . . . 1 Piercing Weapon . | . . . . Special Melee Weapon . | . . . . Unidentified Prototypes . | . . . . Parts Lost 8 | . . 3 5 Power 3 | . . 1 2 Propulsion 3 | . . 2 1 Utility 1 | . . . 1 Weapon 1 | . . . 1 Highest Loss Streak 3 | . . 3 3 To Critical Strikes . | . . . . Average Slot Usage (%) 62 | . 99 75 55 Engine 18 | . 14 10 19 Leg 4 | . 28 8 . Wheel 1 | . . . 2 Device 5 | . . . 7 Storage 4 | . 14 14 2 Processor 8 | . 14 14 7 Energy Gun 2 | . 14 . 1 Energy Cannon 5 | . . . 7 Ballistic Gun 1 | . 13 . . Ballistic Cannon 3 | . . 6 3 Special Weapon 2 | . . 12 1 Slashing Weapon 1 | . . . 1 Naked Turns . | . . . . Heaviest Build 20 | 11 11 10 20 Greatest Support 20 | 20 20 20 10 Greatest Overweight (x) 6 | . . 2 6 Average Overweight (x) 2 | . . . 3 Largest Inventory Capacity 8 | . 8 8 8 Average Capacity 6 | . 8 8 5 Most Carried 8 | . 8 8 7 Average Carried 5 | . 6 7 5 Final Capacity 8 | 8 8 8 5 Final Carried 8 | 6 8 7 4 Class Distribution -------------------- 100% | Mutant Dominant Class ---------------- Mutant | -10/Materials Mutant | -10/Mines Mutant | -10/Subcaves Resources | -11 -10 -10 -10 ----------- Run | Yrd Mat Min Sub Matter Collected 406 | 200 12 34 160 Remotely . | . . . . Salvage Created 239 | . 12 . 227 Parts 12 | . 3 1 8 Haulers Intercepted . | . . . . Recyclers Shooed . | . . . . Parts Field Recycled . | . . . . Retrieved Matter . | . . . . Parts Self-Destructed 11 | . . . 11 Prevented . | . . . . Kills | -11 -10 -10 -10 ------- Run | Yrd Mat Min Sub Combat Hostiles Destroyed 10 | . . 3 7 Cannons 9 | . . 3 6 Classes Destroyed 5 | . 1 2 2 Tunneler 1 | . 1 . . Swarmer 4 | . . 1 3 Demolisher 2 | . . 2 . Artisan 2 | . . . 2 Subdweller 4 | . . . 4 Best Kill Streak 3 | . 1 2 3 Combat Bots Only 3 | . . 2 3 Max Kills in Single Turn 1 | . 1 1 1 Gunslinging . | . . . . Exploded . | . . . . Melee . | . . . . Uniques/NPCs Destroyed . | . . . . Combat | -11 -10 -10 -10 -------- Run | Yrd Mat Min Sub Hostile Shots Fired 58 | . . 14 44 Missed 21 | . . 4 17 Damage Taken 896 | . . 347 549 Core 266 | . . 128 138 Absorbed by Shields . | . . . . Core Remaining (%) 100 | 100 . . . Volleys Fired 50 | . 7 9 34 Largest 2 | . 2 2 2 Hottest 200 | . 70 200 85 Shots Fired 57 | . 12 10 35 Gun 13 | . 12 . 1 Cannon 41 | . . 8 33 Launcher 1 | . . . 1 Special 2 | . . 2 . Kinetic 16 | . 7 8 1 Thermal 40 | . 5 2 33 Explosive 1 | . . . 1 Electromagnetic . | . . . . Robot Hit Streak 7 | . 3 3 7 Robot Miss Streak 4 | . 4 2 1 Penetration Max . | . . . . Secondary Targets . | . . . . Shots Hit Robots 41 | . 6 5 30 Core Hits 12 | . 2 3 7 Critical Kills 1 | . . . 1 Critical Parts Destroyed . | . . . . Critical Strikes 1 | . . . 1 Meltdown 1 | . . . 1 Melee Attacks 3 | . . . 3 Impact . | . . . . Slashing 3 | . . . 3 Piercing . | . . . . Sneak Attacks 2 | . . . 2 Combat Hostiles . | . . . . Follow-up Attacks . | . . . . Damage Inflicted 1534 | . 63 93 1378 Guns 63 | . 63 . . Cannons 1325 | . . 69 1256 Explosions 32 | . . . 32 Melee 90 | . . . 90 Ramming . | . . . . Kinetic 111 | . 24 69 18 Thermal 1301 | . 39 24 1238 Explosive 32 | . . . 32 Electromagnetic . | . . . . Impact . | . . . . Slashing 90 | . . . 90 Piercing . | . . . . Highest Corruption 1 | . 1 1 1 Average Corruption 1 | . 1 1 1 Corruption Purged . | . . . . Corruption Blocked . | . . . . Effects 10 | . 1 1 8 Matter Fused 2 | . 1 . 1 Heat Flow Errors 2 | . . . 2 Energy Discharges 3 | . . . 3 Data Loss (minor) 2 | . . 1 1 Data Loss (major) 1 | . . . 1 Overload Shots . | . . . . Overflow Damage 75 | . . . 75 Projectiles 55 | . . . 55 Explosions . | . . . . Melee 20 | . . . 20 Knockbacks 1 | . . 1 . Impact . | . . . . Kinetic 1 | . . 1 . Secondary . | . . . . Self-Inflicted Damage . | . . . . Shots . | . . . . Rammed . | . . . . Targets Rammed . | . . . . Kicked . | . . . . Crushed . | . . . . Highest Temperature 168 | . 70 56 168 Average Temperature 24 | . 32 21 22 Received Heat Transfer 132 | . . . 132 Siege Activations . | . . . . Robots Corrupted . | . . . . Combat Hostiles . | . . . . Parts Fried . | . . . . Impact Corruptions . | . . . . Robots Melted 1 | . . . 1 Combat Hostiles 1 | . . . 1 Parts Melted 2 | . . . 2 Heat Transferred 161 | . 111 50 . Parts Sabotaged . | . . . . Parts Stolen . | . . . . Parts Stripped . | . . . . Power Chain Reactions . | . . . . Missiles Intercepted . | . . . . Alert | -11 -10 -10 -10 ------- Run | Yrd Mat Min Sub Peak Influence 44 | . 11 44 . Initial 4 | . . 4 . Average 10 | . 4 23 . Maximum Alert Level . | . . . . Low Security (%) 100 | . 100 100 . Level 1 . | . . . . Level 2 . | . . . . Level 3 . | . . . . Level 4 . | . . . . Level 5 . | . . . . High Security . | . . . . Max Security . | . . . . Squads Dispatched 2 | . 2 . . Investigation 1 | . 1 . . Extermination . | . . . . Reinforcement 1 | . 1 . . Assault . | . . . . Garrison . | . . . . Intercept . | . . . . Searches Triggered . | . . . . Construction Impeded . | . . . . Haulers Reinforced . | . . . . Active Scanning Responses . | . . . . Cargo Convoy Interrupts . | . . . . Stealth | -11 -10 -10 -10 --------- Run | Yrd Mat Min Sub Distress Signals . | . . . . Communications Jammed . | . . . . Distress Signals . | . . . . Times Spotted 17 | . 1 6 10 Peak Tracking Total 3 | . 2 3 3 Tactical Retreats . | . . . . Traps | -11 -10 -10 -10 ------- Run | Yrd Mat Min Sub Traps Triggered 2 | . 1 . 1 Indirectly . | . . . . Trap Hack Attempts . | . . . . Triggered . | . . . . Disarmed . | . . . . Reprogrammed . | . . . . Reused . | . . . . Traps Extracted . | . . . . Installed . | . . . . Triggered . | . . . . Machines | -11 -10 -10 -10 ---------- Run | Yrd Mat Min Sub Machines Disabled 2 | . . . 2 Max in Single Turn 1 | . . . 1 Machines Repaired . | . . . . Machines Dismantled . | . . . . Machines Sabotaged . | . . . . Overloaded Fab Kills . | . . . . Hacking | -11 -10 -10 -10 --------- Run | Yrd Mat Min Sub Machines Accessed 3 | . 1 . 2 Terminals 1 | . 1 . . Fabricators . | . . . . Repair Stations . | . . . . Recycling Units . | . . . . Scanalyzers . | . . . . Garrison Access . | . . . . Total Hacks 14 | . 2 . 12 Successful 13 | . 1 . 12 Failed 1 | . 1 . . Catastrophic . | . . . . Database Lockouts . | . . . . Manual 4 | . 4 . . Terminals 2 | . 2 . . Fabricators . | . . . . Repair Stations . | . . . . Recycling Units . | . . . . Scanalyzers . | . . . . Garrison Access . | . . . . Terminal Hacks 13 | . 1 . 12 Record 11 | . . . 11 Prototype ID Bank 1 | . 1 . . Derelict Proto ID Bank 1 | . . . 1 Fabricator Hacks . | . . . . Repair Station Hacks . | . . . . Recycling Unit Hacks . | . . . . Scanalyzer . | . . . . Garrison Access Hacks . | . . . . Unauthorized Hacks . | . . . . Terminals . | . . . . Fabricators . | . . . . Repair Stations . | . . . . Recycling Units . | . . . . Scanalyzers . | . . . . Garrison Access . | . . . . Data Cores Recovered . | . . . . Used . | . . . . Hacking Detections 1 | . 1 . . Full Trace Events 1 | . 1 . . Feedback Events . | . . . . Feedback Blocked . | . . . . Robot Schematics Acquired . | . . . . Robots Built . | . . . . Authchips . | . . . . Time . | . . . . Total Robot Build Rating . | . . . . Part Schematics Acquired . | . . . . Parts Built . | . . . . Authchips . | . . . . Time . | . . . . Total Part Build Rating . | . . . . Parts Repaired . | . . . . Time . | . . . . Parts Recycled . | . . . . Recycled Matter . | . . . . Retrieved Matter . | . . . . Retrieved Components . | . . . . Parts Scanalyzed . | . . . . Part Schematics Acquired . | . . . . Parts Damaged . | . . . . Bothacking | -11 -10 -10 -10 ------------ Run | Yrd Mat Min Sub Used RIF Installer . | . . . . Robots Hacked . | . . . . Non-combat . | . . . . Combat . | . . . . Robot Hacks Applied . | . . . . Relay Couplers Released . | . . . . Fabnet Peak Effective % . | . . . . Robots Rewired . | . . . . Allies Hacked . | . . . . Hacks Repelled . | . . . . Allies | -11 -10 -10 -10 -------- Run | Yrd Mat Min Sub Total Allies . | . . . . Largest Group . | . . . . Highest-Rated Group . | . . . . Highest-Rated Ally . | . . . . Total Orders . | . . . . Ally Attacks . | . . . . Total Damage . | . . . . Kills . | . . . . Allies Corrupted . | . . . . Allies Melted . | . . . . Intel | -11 -10 -10 -10 ------- Run | Yrd Mat Min Sub Robot Analysis Total . | . . . . Derelict Logs Recovered . | . . . . Drone Launches . | . . . . Drone Recoveries . | . . . . Exploration | -11 -10 -10 -10 ------------- Run | Yrd Mat Min Sub Turns Passed 1131 | . 164 65 902 Spaces Moved 564 | 1 111 49 403 Core 281 | . . 6 275 Treads . | . . . . Legs 124 | 1 111 12 . Wheels 128 | . . . 128 Hover . | . . . . Flight 31 | . . 31 . Fastest Speed 37 | 120 120 37 80 Average Speed 172 | 120 120 74 199 Slowest Speed 350 | 120 120 200 350 Overloaded Moves . | . . . . Propulsion Burnouts . | . . . . Robots Hopped . | . . . . Cave-ins Triggered . | . . . . Exploration Rate (%) 17 | 2 21 13 34 Regions Visited 3 Branch Regions 2 Pre-discovered Areas . | . . . . Known Exits Taken . | . . . . Unknown Exits Taken 3 | 1 1 1 . Scrap Searched 2 | . . . 2 Spaces Dug . | . . . . Terrain Destroyed 9 | . . 1 8 Melee . | . . . . Projectile 4 | . . 1 3 AOE 5 | . . . 5 Terrain Rammed . | . . . . Walls Destroyed . | . . . . Machines Disabled . | . . . . Actions | -11 -10 -10 -10 --------- Run | Yrd Mat Min Sub Total 667 | . 132 65 470 Wait 3 | . 1 . 2 Move 561 | . 110 48 403 Hop . | . . . . Pick Up 11 | . 6 . 5 Fast Attach 9 | . 2 2 5 Attach 6 | . . 1 5 Detach 3 | . . 1 2 Swap 4 | . 1 . 3 Drop 17 | . 5 4 8 Fire 50 | . 7 9 34 Melee 3 | . . . 3 Ram . | . . . . Kick . | . . . . Crush . | . . . . Escape Stasis . | . . . . Rewire . | . . . . Trap . | . . . . Miscellaneous . | . . . . Route ------- -11/Scrapyard -10/Materials -10/Mines -10/Subcaves History --------- Turn | Location | Event 1 | -11/Scrapyard | Discovered new exit (range 0) 1 | -11/Scrapyard | Entered Materials 127 | -10/Materials | Discovered new exit (range 12) 165 | -10/Materials | Entered Mines 166 | -10/Mines | Assembled infested the area 171 | -10/Mines | Assisted by a Guerilla fighting off Assembled 199 | -10/Mines | Met a Derelict bent on vengeance 212 | -10/Mines | Discovered new exit (range 5) 218 | -10/Mines | Core integrity fell below 50% 230 | -10/Mines | Entered Subcaves 246 | -10/Subcaves | Lost 3 parts (1p2n) 286 | -10/Subcaves | Visited Clippyterm 309 | -10/Subcaves | Build established: Mutant 461 | -10/Subcaves | Visited 4L-MR0's lab 499 | -10/Subcaves | Found Botcube 530 | -10/Subcaves | Found Powered Cannon 582 | -10/Subcaves | Attached Powered Cannon, gained temporary slot: Power 605 | -10/Subcaves | Shifting Twisted Machinery released Battle Rifle 616 | -10/Subcaves | Shifting Twisted Machinery released Sub. Laser 772 | -10/Subcaves | Lost 3 parts (1p1n1u) 1110 | -10/Subcaves | A Subdweller sparked back to life 1110 | -10/Subcaves | A Subdweller sparked back to life 1110 | -10/Subcaves | A Subdweller sparked back to life 1117 | -10/Subcaves | Core integrity fell below 20% 1132 | -10/Subcaves | Destroyed by W0-B22(R) with Subdweller Laser Last Messages --------------- 00754_ M8-QE9(R): "SUBHATE!" 00758_ Acquired Sub. Power Source. 00780_ Destroyed Sub. Power Source. 00787_ M8-QE9(R) affixes Scrap Shield Fragment to Scrap Shield. 00793_ M8-QE9(R) destroyed. 00810_ System corrupted: Component data lost. 00844_ System corrupted: Matter fused (-9). 00879_ Sub. Optics shoots sparks and powers down. 00882_ Dropped Broken Sub. Optics. 00963_ System corrupted: Energy discharge (-78). 01053_ System corrupted: Heat flow error (+118). 01110_ W0-B22(R) creaks and sparks as it begins to move. 01110_ NI-SRN(R) creaks and sparks as it begins to move. 01110_ 6L-EQ1(R) creaks and sparks as it begins to move. 01112_ Lgt. Ion Engine destroyed. 01114_ Temporary Power slot lost. 01116_ 6L-EQ1(R) suffers critical hit (Meltdown). 01116_ Disposable Heat Sink melted. 01116_ Sub. Machine Gun melted. 01122_ Powered Cannon destroyed. Map ----- +----------------------------------------------------+ | ?????????????????????????????????????????????????? | | ?????????????????????????????????????????????????? | | ?????????????????????????????????????????????????? | | ?????????????????????????????????????????????????? | | ?????????????????????????????????????????????????? | | ?????????????????????????????????????????????????? | | ?????????????????????????????????????????????????? | | ?????????????????????????????????????????????????? | | ?????????????????????????????????????????????????? | | ?????????????????????????????????????????????????? | | ?????????????????????????????????????????????????? | | ?????????????????????????????????????????????????? | | ?????????####????????????????????????????????????? | | ##?####?## #####????????????????????????????????? | | ### ### ## #####???????????????????????????? | | ## ## # ##??????????????????????????? | | ## #?? ####?????????#####?????????? | | ## #???# ####?????# # #?????????? | | ## #??## #????# ??????????? | | #### #???## #???????????? | | ## ## ####???# #????????????? | | ########### #????????????? | | ### ## #?????????????? | | #### #?????????????? | | #?# #?????????????? | | ## #?# @ R | ##?????????????? | | ### ## ## ## % #??????????????? | | ##?# #### ## #????#R #??????????????? | | #??# ####??# ##?#" " ?????????????? | | #??# #####?# ####??# & ???????????? | | ??## ### ## ##?????# " & ?????????? | | ??# ## #####??????# #???????? | | ### #???????# " # #???????? | | # #??????#### #### "??????? | | #### ## ??????????# ##????""?????? | | ??## ## ##?#?????????????######?????? ?????? | | ?## ! #? ##??????????????????????????????????? | | ## #? ###???????????????????????????????????? | | # ##??##?????????????????????????????????????? | | # ##??????????????????????????????????????????? | | # #???????????????????????????????????????????? | | ## #???????????????????????????????????????????? | | ## #???????????????????????????????????????????? | | #???????????????????????????????????????????? | | #???????????????????????????????????????????? | | #???????????????????????????????????????????? | | ## #???????????????????????????????????????????? | | ## #??????????????????????????????????????????? | | #??????????????????????????????????????????? | | ##??????????????????????????????????????????? | +----------------------------------------------------+ Best States ------------- Heat Dissipation 35 Energy Generation 20 Energy Capacity 225 Matter Stores 300 Matter Capacity 300 Sight Range 21 Terrain Scan Density 10 Evasion (%) 62 Targeting Accuracy 5 Item Schematics ----------------- None Robot Schematics ------------------ None Fabricated ------------ Nothing Alien Tech Used ----------------- None Achievements -------------- None Challenges ------------ None Game ------ Seed BombGhostThruster Manual? 0 Play Time 00:09:42 Cumulative 568.9 hours Start 2024.01.05 @ 20:38:45 End 2024.01.05 @ 20:44:48 Sessions 1 Manual Loads 0 Difficulty Rogue Special Mode None Game No. 463 Rogue 190 Adventurer 123 Explorer 150 Win Type - Total 25 Types 19/0/4/1/0/0/0/1/0 Lore% 77 Gallery% 90 Achievement% 75 Wizard Run 0 Options --------- ASCII 0 Keyboard 1 Movement Numpad Keybinds 0 Fullscreen 2 Font 18/X11Bold Map View 76x50 Zoom Use 0% Tactical HUD 1 Map Filters NONE Filters NONE Steam 1 RUN: a6f0b0cc-e281-4097-81bc-5fb92d292cb8